[Event "Titled Tuesday Blitz August 16 Early 2022"]
[White "Derjabin, Ilja"]
[Black "Schmakel, Sam"]
[WhiteFideId "14104768"]
[BlackFideId "2039311"]
[WhiteElo "2341"]
[BlackElo "2356"]
[Result "0-1"]
[Round "01"]
[TimeControl "180+2"]
[Date "2022.08.18"]
[WhiteClock "0:00:00"]
[BlackClock "0:00:00"]

1. d4 {[%clk 0:00:00]}  Nf6 {[%clk 0:00:00]} 2. c4 {[%clk 0:00:00]}  e6 {[%clk 0:00:00]} 3. Nc3 {[%clk 0:00:00]}  Bb4 {[%clk 0:00:00]} 4. f3 {[%clk 0:00:00]}  c5 {[%clk 0:00:00]} 5. a3 {[%clk 0:00:00]}  Bxc3+ {[%clk 0:00:00]} 6. bxc3 {[%clk 0:00:00]}  O-O {[%clk 0:00:00]} 7. e4 {[%clk 0:00:00]}  d6 {[%clk 0:00:00]} 8. Bd3 {[%clk 0:00:00]}  Nc6 {[%clk 0:00:00]} 9. Ne2 {[%clk 0:00:00]}  h6 {[%clk 0:00:00]} 10. O-O {[%clk 0:00:00]}  b6 {[%clk 0:00:00]} 11. f4 {[%clk 0:00:00]}  Na5 {[%clk 0:00:00]} 12. e5 {[%clk 0:00:00]}  Ne8 {[%clk 0:00:00]} 13. Ng3 {[%clk 0:00:00]}  Ba6 {[%clk 0:00:00]} 14. Qg4 {[%clk 0:00:00]}  Bxc4 {[%clk 0:00:00]} 15. Bxc4 {[%clk 0:00:00]}  Nxc4 {[%clk 0:00:00]} 16. f5 {[%clk 0:00:00]}  cxd4 {[%clk 0:00:00]} 17. Bxh6 {[%clk 0:00:00]}  Nxe5 {[%clk 0:00:00]} 18. Qh5 {[%clk 0:00:00]}  gxh6 {[%clk 0:00:00]} 19. Qxh6 {[%clk 0:00:00]}  Qf6 {[%clk 0:00:00]} 20. Qh3 {[%clk 0:00:00]}  Qh8 {[%clk 0:00:00]} 21. Nh5 {[%clk 0:00:00]}  Qh6 {[%clk 0:00:00]} 22. cxd4 {[%clk 0:00:00]}  Nd7 {[%clk 0:00:00]} 23. Rf3 {[%clk 0:00:00]}  Kh8 {[%clk 0:00:00]} 24. Raf1 {[%clk 0:00:00]}  Ng7 {[%clk 0:00:00]} 25. Rf4 {[%clk 0:00:00]}  Nxh5 {[%clk 0:00:00]} 26. Rh4 {[%clk 0:00:00]}  Ndf6 {[%clk 0:00:00]} 27. fxe6 {[%clk 0:00:00]}  fxe6 {[%clk 0:00:00]} 28. Rxf6 {[%clk 0:00:00]}  Qc1+ {[%clk 0:00:00]} 29. Kf2 {[%clk 0:00:00]}  Rxf6+ {[%clk 0:00:00]} 30. Ke2 {[%clk 0:00:00]}  Qf1+ {[%clk 0:00:00]} 31. Ke3 {[%clk 0:00:00]}  Qe1+ {[%clk 0:00:00]} 32. Kd3 {[%clk 0:00:00]}  Qd1+ {[%clk 0:00:00]} 33. Ke3 {[%clk 0:00:00]}  Rf5 {[%clk 0:00:00]} 34. Rxh5+ {[%clk 0:00:00]}  Qxh5 {[%clk 0:00:00]} 35. g4 {[%clk 0:00:00]}  Qxh3+ {[%clk 0:00:00]} 36. Ke4 {[%clk 0:00:00]}  Qf3# {[%clk 0:00:00]} 0-1


[Site "https://www.chess.com"]

[Event "Titled Tuesday Blitz August 16 Early 2022"]
[White "Diaz Perez, Michel Alejandro"]
[Black "Kohler, Aran"]
[WhiteFideId "3517179"]
[BlackFideId "1002856"]
[WhiteElo "2313"]
[BlackElo "2060"]
[Result "1-0"]
[Round "01"]
[TimeControl "180+2"]
[Date "2022.08.18"]
[WhiteClock "0:00:00"]
[BlackClock "0:00:00"]

1. d4 {[%clk 0:00:00]}  Nf6 {[%clk 0:00:00]} 2. Bf4 {[%clk 0:00:00]}  c5 {[%clk 0:00:00]} 3. e3 {[%clk 0:00:00]}  Qb6 {[%clk 0:00:00]} 4. Nc3 {[%clk 0:00:00]}  d6 {[%clk 0:00:00]} 5. a3 {[%clk 0:00:00]}  Nc6 {[%clk 0:00:00]} 6. Nf3 {[%clk 0:00:00]}  Bg4 {[%clk 0:00:00]} 7. dxc5 {[%clk 0:00:00]}  Qxc5 {[%clk 0:00:00]} 8. Be2 {[%clk 0:00:00]}  e5 {[%clk 0:00:00]} 9. Bg5 {[%clk 0:00:00]}  Be7 {[%clk 0:00:00]} 10. Bxf6 {[%clk 0:00:00]}  Bxf6 {[%clk 0:00:00]} 11. O-O {[%clk 0:00:00]}  Ne7 {[%clk 0:00:00]} 12. Ne4 {[%clk 0:00:00]}  Qc7 {[%clk 0:00:00]} 13. Qxd6 {[%clk 0:00:00]}  Qxc2 {[%clk 0:00:00]} 14. Nxf6+ {[%clk 0:00:00]}  gxf6 {[%clk 0:00:00]} 15. Qxf6 {[%clk 0:00:00]}  Rg8 {[%clk 0:00:00]} 16. Bb5+ {[%clk 0:00:00]}  Kf8 {[%clk 0:00:00]} 17. Nxe5 {[%clk 0:00:00]}  Be6 {[%clk 0:00:00]} 18. Rac1 {[%clk 0:00:00]}  Qe4 {[%clk 0:00:00]} 19. g3 {[%clk 0:00:00]}  Bd5 {[%clk 0:00:00]} 20. Nd7+ {[%clk 0:00:00]} 1-0


[Site "https://www.chess.com"]

[Event "Titled Tuesday Blitz August 16 Early 2022"]
[White "Djokic, Mihailo"]
[Black "Leschinsky, Gary"]
[WhiteFideId "976440"]
[BlackFideId "30951321"]
[WhiteElo "2246"]
[BlackElo "1809"]
[Result "0-1"]
[Round "01"]
[TimeControl "180+2"]
[Date "2022.08.18"]
[WhiteClock "0:00:00"]
[BlackClock "0:00:00"]

1. e4 {[%clk 0:00:00]}  c5 {[%clk 0:00:00]} 2. Nf3 {[%clk 0:00:00]}  e6 {[%clk 0:00:00]} 3. d4 {[%clk 0:00:00]}  cxd4 {[%clk 0:00:00]} 4. Nxd4 {[%clk 0:00:00]}  Nc6 {[%clk 0:00:00]} 5. Nc3 {[%clk 0:00:00]}  Qc7 {[%clk 0:00:00]} 6. Be2 {[%clk 0:00:00]}  a6 {[%clk 0:00:00]} 7. O-O {[%clk 0:00:00]}  Nf6 {[%clk 0:00:00]} 8. Be3 {[%clk 0:00:00]}  Ne5 {[%clk 0:00:00]} 9. f4 {[%clk 0:00:00]}  Nc4 {[%clk 0:00:00]} 10. Bc1 {[%clk 0:00:00]}  Bb4 {[%clk 0:00:00]} 11. e5 {[%clk 0:00:00]}  Bxc3 {[%clk 0:00:00]} 12. exf6 {[%clk 0:00:00]}  Nxb2 {[%clk 0:00:00]} 13. fxg7 {[%clk 0:00:00]}  Rg8 {[%clk 0:00:00]} 14. Bxb2 {[%clk 0:00:00]}  Bxb2 {[%clk 0:00:00]} 15. Rb1 {[%clk 0:00:00]}  Qc3 {[%clk 0:00:00]} 16. Nf3 {[%clk 0:00:00]}  Qxg7 {[%clk 0:00:00]} 17. g3 {[%clk 0:00:00]}  b5 {[%clk 0:00:00]} 18. Ng5 {[%clk 0:00:00]}  Bb7 {[%clk 0:00:00]} 19. Bf3 {[%clk 0:00:00]}  Qd4+ {[%clk 0:00:00]} 20. Kg2 {[%clk 0:00:00]}  Bxf3+ {[%clk 0:00:00]} 21. Qxf3 {[%clk 0:00:00]}  Rc8 {[%clk 0:00:00]} 22. Qh5 {[%clk 0:00:00]}  Rxc2+ {[%clk 0:00:00]} 23. Kh3 {[%clk 0:00:00]}  Rg7 {[%clk 0:00:00]} 24. Rbd1 {[%clk 0:00:00]}  Qf6 {[%clk 0:00:00]} 25. Ne4 {[%clk 0:00:00]}  Qg6 {[%clk 0:00:00]} 26. Nd6+ {[%clk 0:00:00]}  Ke7 {[%clk 0:00:00]} 27. Qh4+ {[%clk 0:00:00]}  Bf6 {[%clk 0:00:00]} 28. f5 {[%clk 0:00:00]}  Qg5 {[%clk 0:00:00]} 29. Qxg5 {[%clk 0:00:00]}  Rxg5 {[%clk 0:00:00]} 30. fxe6 {[%clk 0:00:00]}  fxe6 {[%clk 0:00:00]} 31. Ne4 {[%clk 0:00:00]}  Rg6 {[%clk 0:00:00]} 32. g4 {[%clk 0:00:00]}  d5 {[%clk 0:00:00]} 33. Nxf6 {[%clk 0:00:00]}  Rxf6 {[%clk 0:00:00]} 34. Rxf6 {[%clk 0:00:00]}  Kxf6 {[%clk 0:00:00]} 35. a3 {[%clk 0:00:00]}  Rc3+ {[%clk 0:00:00]} 36. Kh4 {[%clk 0:00:00]}  Rxa3 {[%clk 0:00:00]} 37. Rf1+ {[%clk 0:00:00]}  Ke7 {[%clk 0:00:00]} 38. Re1 {[%clk 0:00:00]}  b4 {[%clk 0:00:00]} 39. Kg5 {[%clk 0:00:00]}  Ra2 {[%clk 0:00:00]} 40. h4 {[%clk 0:00:00]}  Rg2 {[%clk 0:00:00]} 41. Kh5 {[%clk 0:00:00]}  a5 {[%clk 0:00:00]} 42. g5 {[%clk 0:00:00]}  b3 {[%clk 0:00:00]} 43. Kh6 {[%clk 0:00:00]}  Rg4 {[%clk 0:00:00]} 44. h5 {[%clk 0:00:00]}  a4 {[%clk 0:00:00]} 45. Re3 {[%clk 0:00:00]}  b2 {[%clk 0:00:00]} 46. g6 {[%clk 0:00:00]}  hxg6 {[%clk 0:00:00]} 47. Rg3 {[%clk 0:00:00]}  Rxg3 {[%clk 0:00:00]} 48. hxg6 {[%clk 0:00:00]}  b1=Q {[%clk 0:00:00]} 49. g7 {[%clk 0:00:00]}  Qh1# {[%clk 0:00:00]} 0-1


[Site "https://www.chess.com"]

[Event "Titled Tuesday Blitz August 16 Early 2022"]
[White "Dounis, Alexandros"]
[Black "Sailer, Mike"]
[WhiteFideId "4213238"]
[BlackFideId "2012901"]
[WhiteElo "2204"]
[BlackElo "2109"]
[Result "1-0"]
[Round "01"]
[TimeControl "180+2"]
[Date "2022.08.18"]
[WhiteClock "0:00:00"]
[BlackClock "0:00:00"]

1. e4 {[%clk 0:00:00]}  d5 {[%clk 0:00:00]} 2. exd5 {[%clk 0:00:00]}  Qxd5 {[%clk 0:00:00]} 3. Nc3 {[%clk 0:00:00]}  Qd6 {[%clk 0:00:00]} 4. d4 {[%clk 0:00:00]}  Nf6 {[%clk 0:00:00]} 5. Nf3 {[%clk 0:00:00]}  c6 {[%clk 0:00:00]} 6. Ne5 {[%clk 0:00:00]}  Nbd7 {[%clk 0:00:00]} 7. Nc4 {[%clk 0:00:00]}  Qc7 {[%clk 0:00:00]} 8. g3 {[%clk 0:00:00]}  Nb6 {[%clk 0:00:00]} 9. Bf4 {[%clk 0:00:00]}  Qd8 {[%clk 0:00:00]} 10. Qd2 {[%clk 0:00:00]}  Bg4 {[%clk 0:00:00]} 11. Ne5 {[%clk 0:00:00]}  Bh5 {[%clk 0:00:00]} 12. Bg2 {[%clk 0:00:00]}  e6 {[%clk 0:00:00]} 13. O-O {[%clk 0:00:00]}  Be7 {[%clk 0:00:00]} 14. h3 {[%clk 0:00:00]}  Nbd5 {[%clk 0:00:00]} 15. g4 {[%clk 0:00:00]}  Nxf4 {[%clk 0:00:00]} 16. Qxf4 {[%clk 0:00:00]}  Bg6 {[%clk 0:00:00]} 17. Nxg6 {[%clk 0:00:00]}  hxg6 {[%clk 0:00:00]} 18. Rfe1 {[%clk 0:00:00]}  Bd6 {[%clk 0:00:00]} 19. Qf3 {[%clk 0:00:00]}  Qc7 {[%clk 0:00:00]} 20. a3 {[%clk 0:00:00]}  O-O-O {[%clk 0:00:00]} 21. b4 {[%clk 0:00:00]}  Bh2+ {[%clk 0:00:00]} 22. Kf1 {[%clk 0:00:00]}  Rxd4 {[%clk 0:00:00]} 23. b5 {[%clk 0:00:00]}  Rf4 {[%clk 0:00:00]} 24. Qe3 {[%clk 0:00:00]}  cxb5 {[%clk 0:00:00]} 25. Qxa7 {[%clk 0:00:00]}  Qxc3 {[%clk 0:00:00]} 26. Qa8+ {[%clk 0:00:00]}  Kd7 {[%clk 0:00:00]} 27. Rad1+ {[%clk 0:00:00]}  Nd5 {[%clk 0:00:00]} 28. Qxb7+ {[%clk 0:00:00]}  Kd6 {[%clk 0:00:00]} 29. Rxd5+ {[%clk 0:00:00]}  exd5 {[%clk 0:00:00]} 30. Qxd5+ {[%clk 0:00:00]}  Kc7 {[%clk 0:00:00]} 31. Re7+ {[%clk 0:00:00]}  Kb6 {[%clk 0:00:00]} 32. Rb7+ {[%clk 0:00:00]}  Ka6 {[%clk 0:00:00]} 33. Qxb5# {[%clk 0:00:00]} 1-0


[Site "https://www.chess.com"]

[Event "Titled Tuesday Blitz August 16 Early 2022"]
[White "Fawzy, Adham"]
[Black "Mouhamad, Joachim"]
[WhiteFideId "10613129"]
[BlackFideId "656410"]
[WhiteElo "2541"]
[BlackElo "2147"]
[Result "1-0"]
[Round "01"]
[TimeControl "180+2"]
[Date "2022.08.18"]
[WhiteClock "0:00:00"]
[BlackClock "0:00:00"]

1. e4 {[%clk 0:00:00]}  c6 {[%clk 0:00:00]} 2. d4 {[%clk 0:00:00]}  d5 {[%clk 0:00:00]} 3. e5 {[%clk 0:00:00]}  c5 {[%clk 0:00:00]} 4. Nf3 {[%clk 0:00:00]}  Nc6 {[%clk 0:00:00]} 5. dxc5 {[%clk 0:00:00]}  e6 {[%clk 0:00:00]} 6. Be3 {[%clk 0:00:00]}  Nge7 {[%clk 0:00:00]} 7. c3 {[%clk 0:00:00]}  Nf5 {[%clk 0:00:00]} 8. Bd4 {[%clk 0:00:00]}  b6 {[%clk 0:00:00]} 9. cxb6 {[%clk 0:00:00]}  Nfxd4 {[%clk 0:00:00]} 10. Nxd4 {[%clk 0:00:00]}  Nxd4 {[%clk 0:00:00]} 11. Qxd4 {[%clk 0:00:00]}  axb6 {[%clk 0:00:00]} 12. Bb5+ {[%clk 0:00:00]}  Bd7 {[%clk 0:00:00]} 13. Bxd7+ {[%clk 0:00:00]}  Qxd7 {[%clk 0:00:00]} 14. Qxb6 {[%clk 0:00:00]}  Be7 {[%clk 0:00:00]} 15. O-O {[%clk 0:00:00]}  O-O {[%clk 0:00:00]} 16. Qd4 {[%clk 0:00:00]}  Qb5 {[%clk 0:00:00]} 17. b3 {[%clk 0:00:00]}  Bc5 {[%clk 0:00:00]} 18. Qd1 {[%clk 0:00:00]}  f6 {[%clk 0:00:00]} 19. a4 {[%clk 0:00:00]}  Qc6 {[%clk 0:00:00]} 20. Qe2 {[%clk 0:00:00]}  fxe5 {[%clk 0:00:00]} 21. Qxe5 {[%clk 0:00:00]}  Rf5 {[%clk 0:00:00]} 22. Qg3 {[%clk 0:00:00]}  Raf8 {[%clk 0:00:00]} 23. Ra2 {[%clk 0:00:00]}  Bd6 {[%clk 0:00:00]} 24. Qd3 {[%clk 0:00:00]}  e5 {[%clk 0:00:00]} 25. c4 {[%clk 0:00:00]}  e4 {[%clk 0:00:00]} 26. cxd5 {[%clk 0:00:00]}  Bxh2+ {[%clk 0:00:00]} 27. Kxh2 {[%clk 0:00:00]}  Qh6+ {[%clk 0:00:00]} 28. Qh3 {[%clk 0:00:00]}  Rh5 {[%clk 0:00:00]} 29. Qxh5 {[%clk 0:00:00]}  Qxh5+ {[%clk 0:00:00]} 30. Kg1 {[%clk 0:00:00]}  Rf6 {[%clk 0:00:00]} 31. Re1 {[%clk 0:00:00]}  Rh6 {[%clk 0:00:00]} 32. Kf1 {[%clk 0:00:00]}  Qxd5 {[%clk 0:00:00]} 33. Rd2 {[%clk 0:00:00]}  Rh1+ {[%clk 0:00:00]} 34. Ke2 {[%clk 0:00:00]}  Rxe1+ {[%clk 0:00:00]} 35. Kxe1 {[%clk 0:00:00]}  Qxb3 {[%clk 0:00:00]} 36. Rd8+ {[%clk 0:00:00]}  Kf7 {[%clk 0:00:00]} 37. Nd2 {[%clk 0:00:00]}  Qxa4 {[%clk 0:00:00]} 38. Rb8 {[%clk 0:00:00]}  Qa1+ {[%clk 0:00:00]} 39. Rb1 {[%clk 0:00:00]}  Qd4 {[%clk 0:00:00]} 40. Rb3 {[%clk 0:00:00]}  h5 {[%clk 0:00:00]} 41. Re3 {[%clk 0:00:00]}  g5 {[%clk 0:00:00]} 42. Nxe4 {[%clk 0:00:00]}  Qa1+ {[%clk 0:00:00]} 43. Ke2 {[%clk 0:00:00]}  g4 {[%clk 0:00:00]} 44. g3 {[%clk 0:00:00]}  Kg6 {[%clk 0:00:00]} 45. Nd2 {[%clk 0:00:00]}  Qh1 {[%clk 0:00:00]} 46. Rd3 {[%clk 0:00:00]}  h4 {[%clk 0:00:00]} 47. gxh4 {[%clk 0:00:00]}  Qxh4 {[%clk 0:00:00]} 48. Nf1 {[%clk 0:00:00]}  Qe7+ {[%clk 0:00:00]} 49. Re3 {[%clk 0:00:00]}  Qb4 {[%clk 0:00:00]} 50. Ng3 {[%clk 0:00:00]}  Kg5 {[%clk 0:00:00]} 51. Kf1 {[%clk 0:00:00]}  Kh4 {[%clk 0:00:00]} 52. Re5 {[%clk 0:00:00]}  Qb1+ {[%clk 0:00:00]} 53. Kg2 {[%clk 0:00:00]}  Qb7+ {[%clk 0:00:00]} 54. Kh2 {[%clk 0:00:00]}  Qf7 {[%clk 0:00:00]} 55. Rf5 {[%clk 0:00:00]}  Qe8 {[%clk 0:00:00]} 56. Kg2 {[%clk 0:00:00]}  Qa8+ {[%clk 0:00:00]} 57. Kg1 {[%clk 0:00:00]}  Qe8 {[%clk 0:00:00]} 58. Kh2 {[%clk 0:00:00]}  Qg6 {[%clk 0:00:00]} 59. Kg2 {[%clk 0:00:00]}  Qe8 {[%clk 0:00:00]} 60. Kf1 {[%clk 0:00:00]}  Qg6 {[%clk 0:00:00]} 61. Ke2 {[%clk 0:00:00]}  Qe8+ {[%clk 0:00:00]} 62. Kf1 {[%clk 0:00:00]}  Qg6 {[%clk 0:00:00]} 63. Rd5 {[%clk 0:00:00]}  Qe8 {[%clk 0:00:00]} 64. Nf5+ {[%clk 0:00:00]}  Kg5 {[%clk 0:00:00]} 65. Ne3+ {[%clk 0:00:00]}  Kh4 {[%clk 0:00:00]} 66. Ng2+ {[%clk 0:00:00]}  Kh3 {[%clk 0:00:00]} 67. Nf4+ {[%clk 0:00:00]}  Kh4 {[%clk 0:00:00]} 68. Rf5 {[%clk 0:00:00]}  Qa8 {[%clk 0:00:00]} 69. Ng2+ {[%clk 0:00:00]}  Kh3 {[%clk 0:00:00]} 70. Rh5# {[%clk 0:00:00]} 1-0


[Site "https://www.chess.com"]

[Event "Titled Tuesday Blitz August 16 Early 2022"]
[White "Floresvillar Gonzalez, Luis Migu"]
[Black "Navarrete Mendez, Gonzalo Alberto"]
[WhiteFideId "5100542"]
[BlackFideId "5106850"]
[WhiteElo "2040"]
[BlackElo "2261"]
[Result "0-1"]
[Round "01"]
[TimeControl "180+2"]
[Date "2022.08.18"]
[WhiteClock "0:00:00"]
[BlackClock "0:00:00"]

1. d4 {[%clk 0:00:00]}  d5 {[%clk 0:00:00]} 2. c3 {[%clk 0:00:00]}  c5 {[%clk 0:00:00]} 3. Nf3 {[%clk 0:00:00]}  Nf6 {[%clk 0:00:00]} 4. Bf4 {[%clk 0:00:00]}  Nc6 {[%clk 0:00:00]} 5. e3 {[%clk 0:00:00]}  Qb6 {[%clk 0:00:00]} 6. Qc1 {[%clk 0:00:00]}  cxd4 {[%clk 0:00:00]} 7. exd4 {[%clk 0:00:00]}  Bf5 {[%clk 0:00:00]} 8. Be2 {[%clk 0:00:00]}  Rc8 {[%clk 0:00:00]} 9. O-O {[%clk 0:00:00]}  e6 {[%clk 0:00:00]} 10. Nbd2 {[%clk 0:00:00]}  Be7 {[%clk 0:00:00]} 11. Re1 {[%clk 0:00:00]}  O-O {[%clk 0:00:00]} 12. Nb3 {[%clk 0:00:00]}  Nb4 {[%clk 0:00:00]} 13. Nh4 {[%clk 0:00:00]}  Bd3 {[%clk 0:00:00]} 14. Qd2 {[%clk 0:00:00]}  Bxe2 {[%clk 0:00:00]} 15. Qxe2 {[%clk 0:00:00]}  Ne4 {[%clk 0:00:00]} 16. f3 {[%clk 0:00:00]}  Bxh4 {[%clk 0:00:00]} 17. g3 {[%clk 0:00:00]}  Bf6 {[%clk 0:00:00]} 18. fxe4 {[%clk 0:00:00]}  Nxa2 {[%clk 0:00:00]} 19. Rxa2 {[%clk 0:00:00]}  Qxb3 {[%clk 0:00:00]} 20. Rxa7 {[%clk 0:00:00]}  Ra8 {[%clk 0:00:00]} 21. Rxa8 {[%clk 0:00:00]}  Rxa8 {[%clk 0:00:00]} 22. exd5 {[%clk 0:00:00]}  Qxd5 {[%clk 0:00:00]} 23. Bc1 {[%clk 0:00:00]}  h5 {[%clk 0:00:00]} 24. Qg2 {[%clk 0:00:00]}  Qb3 {[%clk 0:00:00]} 25. Qf3 {[%clk 0:00:00]}  Ra5 {[%clk 0:00:00]} 26. Kg2 {[%clk 0:00:00]}  Rf5 {[%clk 0:00:00]} 27. Qe2 {[%clk 0:00:00]}  b5 {[%clk 0:00:00]} 28. Rf1 {[%clk 0:00:00]}  Qd5+ {[%clk 0:00:00]} 29. Kg1 {[%clk 0:00:00]}  b4 {[%clk 0:00:00]} 30. Rxf5 {[%clk 0:00:00]}  Qxf5 {[%clk 0:00:00]} 31. Qf1 {[%clk 0:00:00]}  Qc2 {[%clk 0:00:00]} 32. Qe1 {[%clk 0:00:00]}  h4 {[%clk 0:00:00]} 33. gxh4 {[%clk 0:00:00]}  Bxh4 {[%clk 0:00:00]} 34. Qxh4 {[%clk 0:00:00]}  Qxc1+ {[%clk 0:00:00]} 35. Kg2 {[%clk 0:00:00]}  Qxb2+ {[%clk 0:00:00]} 36. Kg1 {[%clk 0:00:00]}  Qc1+ {[%clk 0:00:00]} 37. Kf2 {[%clk 0:00:00]}  Qd2+ {[%clk 0:00:00]} 38. Kf1 {[%clk 0:00:00]}  Qd3+ {[%clk 0:00:00]} 39. Kg2 {[%clk 0:00:00]}  bxc3 {[%clk 0:00:00]} 40. Qd8+ {[%clk 0:00:00]}  Kh7 {[%clk 0:00:00]} 41. Qh4+ {[%clk 0:00:00]}  Kg6 {[%clk 0:00:00]} 42. Qg4+ {[%clk 0:00:00]}  Kf6 {[%clk 0:00:00]} 43. Qf4+ {[%clk 0:00:00]}  Qf5 {[%clk 0:00:00]} 0-1


[Site "https://www.chess.com"]

[Event "Titled Tuesday Blitz August 16 Early 2022"]
[White "Gabdrakhmanov, Azat"]
[Black "Mika, Tomasz"]
[WhiteFideId "34189197"]
[BlackFideId "1132970"]
[WhiteElo "2293"]
[BlackElo "2126"]
[Result "1-0"]
[Round "01"]
[TimeControl "180+2"]
[Date "2022.08.18"]
[WhiteClock "0:00:00"]
[BlackClock "0:00:00"]

1. e4 {[%clk 0:00:00]}  c6 {[%clk 0:00:00]} 2. d4 {[%clk 0:00:00]}  d5 {[%clk 0:00:00]} 3. e5 {[%clk 0:00:00]}  Bf5 {[%clk 0:00:00]} 4. Nf3 {[%clk 0:00:00]}  e6 {[%clk 0:00:00]} 5. Be2 {[%clk 0:00:00]}  c5 {[%clk 0:00:00]} 6. O-O {[%clk 0:00:00]}  Nc6 {[%clk 0:00:00]} 7. Nc3 {[%clk 0:00:00]}  cxd4 {[%clk 0:00:00]} 8. Nb5 {[%clk 0:00:00]}  Bc5 {[%clk 0:00:00]} 9. Nbxd4 {[%clk 0:00:00]}  Nge7 {[%clk 0:00:00]} 10. Nxf5 {[%clk 0:00:00]}  Nxf5 {[%clk 0:00:00]} 11. Bd3 {[%clk 0:00:00]}  O-O {[%clk 0:00:00]} 12. Bxf5 {[%clk 0:00:00]}  exf5 {[%clk 0:00:00]} 13. Bg5 {[%clk 0:00:00]}  Qd7 {[%clk 0:00:00]} 14. c3 {[%clk 0:00:00]}  h6 {[%clk 0:00:00]} 15. Bf4 {[%clk 0:00:00]}  Rfe8 {[%clk 0:00:00]} 16. h4 {[%clk 0:00:00]}  Rad8 {[%clk 0:00:00]} 17. Qd3 {[%clk 0:00:00]}  Bb6 {[%clk 0:00:00]} 18. Rad1 {[%clk 0:00:00]}  Bc7 {[%clk 0:00:00]} 19. Rfe1 {[%clk 0:00:00]}  Re6 {[%clk 0:00:00]} 20. Qxf5 {[%clk 0:00:00]}  Rxe5 {[%clk 0:00:00]} 21. Qxd7 {[%clk 0:00:00]}  Rxe1+ {[%clk 0:00:00]} 22. Nxe1 {[%clk 0:00:00]}  Rxd7 {[%clk 0:00:00]} 23. Bxc7 {[%clk 0:00:00]}  Rxc7 {[%clk 0:00:00]} 24. Rxd5 {[%clk 0:00:00]}  Kf8 {[%clk 0:00:00]} 25. Kf1 {[%clk 0:00:00]}  Ke7 {[%clk 0:00:00]} 26. Nf3 {[%clk 0:00:00]}  Ke6 {[%clk 0:00:00]} 27. Rd2 {[%clk 0:00:00]}  f6 {[%clk 0:00:00]} 28. Ke2 {[%clk 0:00:00]}  h5 {[%clk 0:00:00]} 29. b3 {[%clk 0:00:00]}  Ne7 {[%clk 0:00:00]} 30. Nd4+ {[%clk 0:00:00]}  Kf7 {[%clk 0:00:00]} 31. c4 {[%clk 0:00:00]}  Rd7 {[%clk 0:00:00]} 32. Nb5 {[%clk 0:00:00]}  Rxd2+ {[%clk 0:00:00]} 33. Kxd2 {[%clk 0:00:00]}  Nc6 {[%clk 0:00:00]} 34. Nd6+ {[%clk 0:00:00]}  Ke6 {[%clk 0:00:00]} 35. Nxb7 {[%clk 0:00:00]}  g5 {[%clk 0:00:00]} 36. hxg5 {[%clk 0:00:00]}  fxg5 {[%clk 0:00:00]} 37. Ke3 {[%clk 0:00:00]}  Kf5 {[%clk 0:00:00]} 38. Nd6+ {[%clk 0:00:00]}  Kg4 {[%clk 0:00:00]} 39. c5 {[%clk 0:00:00]}  Nb4 {[%clk 0:00:00]} 40. a3 {[%clk 0:00:00]}  Nd5+ {[%clk 0:00:00]} 41. Kd2 {[%clk 0:00:00]}  h4 {[%clk 0:00:00]} 42. c6 {[%clk 0:00:00]}  Kf4 {[%clk 0:00:00]} 43. Nb5 {[%clk 0:00:00]}  g4 {[%clk 0:00:00]} 44. Ke2 {[%clk 0:00:00]}  h3 {[%clk 0:00:00]} 45. gxh3 {[%clk 0:00:00]}  gxh3 {[%clk 0:00:00]} 46. Kf1 {[%clk 0:00:00]}  Kf3 {[%clk 0:00:00]} 47. Kg1 {[%clk 0:00:00]}  a6 {[%clk 0:00:00]} 48. c7 {[%clk 0:00:00]}  Nb6 {[%clk 0:00:00]} 49. Nd6 {[%clk 0:00:00]}  h2+ {[%clk 0:00:00]} 50. Kxh2 {[%clk 0:00:00]}  Kxf2 {[%clk 0:00:00]} 51. a4 {[%clk 0:00:00]}  a5 {[%clk 0:00:00]} 52. b4 {[%clk 0:00:00]}  axb4 {[%clk 0:00:00]} 53. a5 {[%clk 0:00:00]}  Nc8 {[%clk 0:00:00]} 54. Nxc8 {[%clk 0:00:00]}  b3 {[%clk 0:00:00]} 55. Nb6 {[%clk 0:00:00]}  b2 {[%clk 0:00:00]} 56. c8=Q {[%clk 0:00:00]}  b1=Q {[%clk 0:00:00]} 57. Qc5+ {[%clk 0:00:00]}  Kf3 {[%clk 0:00:00]} 58. Qd5+ {[%clk 0:00:00]}  Kf4 {[%clk 0:00:00]} 59. Qc4+ {[%clk 0:00:00]}  Kf5 {[%clk 0:00:00]} 60. Qc5+ {[%clk 0:00:00]}  Ke6 {[%clk 0:00:00]} 61. Kg3 {[%clk 0:00:00]}  Qe1+ {[%clk 0:00:00]} 62. Kf3 {[%clk 0:00:00]}  Qd1+ {[%clk 0:00:00]} 63. Ke4 {[%clk 0:00:00]}  Qe2+ {[%clk 0:00:00]} 64. Kd4 {[%clk 0:00:00]}  Qd2+ {[%clk 0:00:00]} 65. Kc4 {[%clk 0:00:00]}  Qc2+ {[%clk 0:00:00]} 66. Kb5 {[%clk 0:00:00]}  Qb3+ {[%clk 0:00:00]} 67. Qb4 {[%clk 0:00:00]}  Qd1 {[%clk 0:00:00]} 68. Qc4+ {[%clk 0:00:00]}  Kf6 {[%clk 0:00:00]} 69. Qc6+ {[%clk 0:00:00]}  Kg7 {[%clk 0:00:00]} 70. Qd7+ {[%clk 0:00:00]}  Kh8 {[%clk 0:00:00]} 71. Qxd1 {[%clk 0:00:00]} 1-0


[Site "https://www.chess.com"]

[Event "Titled Tuesday Blitz August 16 Early 2022"]
[White "Guz, Ari"]
[Black "Albertini, Luca"]
[WhiteFideId "2825759"]
[BlackFideId "847038"]
[WhiteElo "1913"]
[BlackElo "2207"]
[Result "1-0"]
[Round "01"]
[TimeControl "180+2"]
[Date "2022.08.18"]
[WhiteClock "0:00:00"]
[BlackClock "0:00:00"]

1. e4 {[%clk 0:00:00]}  e5 {[%clk 0:00:00]} 2. Nf3 {[%clk 0:00:00]}  Nc6 {[%clk 0:00:00]} 3. Bc4 {[%clk 0:00:00]}  Bc5 {[%clk 0:00:00]} 4. c3 {[%clk 0:00:00]}  Nf6 {[%clk 0:00:00]} 5. d4 {[%clk 0:00:00]}  exd4 {[%clk 0:00:00]} 6. cxd4 {[%clk 0:00:00]}  Bb4+ {[%clk 0:00:00]} 7. Nc3 {[%clk 0:00:00]}  Nxe4 {[%clk 0:00:00]} 8. O-O {[%clk 0:00:00]}  Bxc3 {[%clk 0:00:00]} 9. d5 {[%clk 0:00:00]}  Bf6 {[%clk 0:00:00]} 10. Re1 {[%clk 0:00:00]}  Ne7 {[%clk 0:00:00]} 11. Rxe4 {[%clk 0:00:00]}  d6 {[%clk 0:00:00]} 12. g4 {[%clk 0:00:00]}  h6 {[%clk 0:00:00]} 13. h4 {[%clk 0:00:00]}  g6 {[%clk 0:00:00]} 14. g5 {[%clk 0:00:00]}  hxg5 {[%clk 0:00:00]} 15. hxg5 {[%clk 0:00:00]}  Bg7 {[%clk 0:00:00]} 16. Qe2 {[%clk 0:00:00]}  Bf5 {[%clk 0:00:00]} 17. Re3 {[%clk 0:00:00]}  Qd7 {[%clk 0:00:00]} 18. Bd2 {[%clk 0:00:00]}  O-O {[%clk 0:00:00]} 19. Rxe7 {[%clk 0:00:00]}  Qa4 {[%clk 0:00:00]} 20. b3 {[%clk 0:00:00]}  Qa3 {[%clk 0:00:00]} 21. Re1 {[%clk 0:00:00]}  Qxa2 {[%clk 0:00:00]} 22. Bf4 {[%clk 0:00:00]}  Qxe2 {[%clk 0:00:00]} 23. R1xe2 {[%clk 0:00:00]}  Rfc8 {[%clk 0:00:00]} 24. Nh4 {[%clk 0:00:00]}  Bg4 {[%clk 0:00:00]} 25. f3 {[%clk 0:00:00]}  Bh5 {[%clk 0:00:00]} 26. Kg2 {[%clk 0:00:00]}  a6 {[%clk 0:00:00]} 27. Kg3 {[%clk 0:00:00]}  b5 {[%clk 0:00:00]} 28. Bd3 {[%clk 0:00:00]}  Rab8 {[%clk 0:00:00]} 29. Ra2 {[%clk 0:00:00]}  Ra8 {[%clk 0:00:00]} 30. b4 {[%clk 0:00:00]}  Bf8 {[%clk 0:00:00]} 31. Ree2 {[%clk 0:00:00]}  c5 {[%clk 0:00:00]} 32. dxc6 {[%clk 0:00:00]} 1-0


[Site "https://www.chess.com"]